bitfinex-derivatives/quotes_SOLF0:USTF0_20241005
["timestamp","ask_amount","ask_price","bid_price","bid_amount"]
[1728136054114,10.68,142.77,142.73,0.12502]
[1728136054505,3.5022,142.76,142.73,0.12502]
[1728136055021,3.5026,142.74,142.73,0.12502]
[1728136055215,14.1826,142.74,142.73,0.12502]
[1728136055599,10.68,142.74,142.68,14.1841]
[1728136055805,10.68,142.73,142.68,19.1441]
[1728136056711,3.5034,142.71,142.68,15.64]
[1728136060016,3.5032,142.72,142.68,19.1441]
[1728136060816,10.68,142.73,142.7,3.5036]
[1728136061119,14.1827,142.74,142.7,3.5036]
[1728136061319,10.68,142.74,142.7,3.5036]
[1728136061616,14.1827,142.74,142.7,3.5036]
[1728136061824,10.68,142.74,142.69,3.5037]
[1728136062021,10.68,142.74,142.69,14.1837]
[1728136062315,3.5032,142.72,142.69,3.5039]
[1728136062517,10.68,142.74,142.68,15.64]
[1728136062715,10.68,142.72,142.68,15.64]
[1728136064023,14.1832,142.72,142.68,19.144]
[1728136067821,14.1832,142.72,142.68,8.464]
[1728136068024,3.5034,142.71,142.68,4.96]
[1728136068926,14.1834,142.71,142.68,4.96]
[1728136069127,3.5038,142.7,142.68,4.96]
[1728136069822,3.5039,142.69,142.68,4.96]
[1728136070916,3.5039,142.69,142.67,0.12502]
[1728136073028,3.5038,142.7,142.67,3.62932]
[1728136073331,14.1838,142.7,142.67,3.62932]
[1728136075134,14.1838,142.7,142.68,1.18832817]
[1728136075428,14.1838,142.7,142.67,3.62932]
[1728136075630,10.68,142.7,142.68,1.18832826]
[1728136075827,10.68,142.7,142.68,4.69242826]
[1728136076026,10.68,142.7,142.68,3.5041]
[1728136077728,10.68,142.7,142.67,0.12502]
[1728136077928,14.1836,142.7,142.68,1.18832806]
[1728136079141,1.3547,142.75,142.68,1.18832806]
[1728136079433,6.2947,142.75,142.68,3.504]
[1728136079635,10.68,142.72,142.68,3.504]
[1728136079828,3.5034,142.71,142.67,3.62922]
[1728136080132,3.5034,142.71,142.68,1.18832797]
[1728136080538,14.1832,142.72,142.69,3.5038]
[1728136080832,1.3547,142.75,142.67,10.80502]
[1728136081138,10.68,142.72,142.7,3.5036]
[1728136081440,1.3547,142.75,142.69,4.94]
[1728136081627,3.5026,142.75,142.71,3.5032]
[1728136081827,10.68,142.74,142.71,3.5032]
[1728136082132,10.68,142.73,142.7,3.5035]
[1728136082523,10.68,142.73,142.69,4.94]
[1728136082721,3.5028,142.74,142.69,15.62]
[1728136082722,14.1828,142.74,142.69,15.62]
[1728136084136,14.1828,142.74,142.71,3.5034]
[1728136084825,14.183,142.73,142.69,8.4437]
[1728136085034,10.68,142.73,142.69,4.94]
[1728136085628,10.68,142.73,142.7,3.5034]
[1728136086535,10.68,142.71,142.69,4.94]
[1728136086734,10.68,142.7,142.69,4.94]
[1728136087837,14.1836,142.7,142.69,4.94]
[1728136088135,10.68,142.7,142.69,4.94]
[1728136088930,10.68,142.7,142.67,5.06502]
[1728136089523,10.68,142.69,142.67,0.12502]
[1728136090229,14.184,142.69,142.67,0.12502]
[1728136094543,3.504,142.69,142.67,0.12502]
[1728136094744,3.5041,142.68,142.67,0.12502]
[1728136094940,10.68,142.69,142.67,0.12502]
[1728136096149,14.184,142.69,142.67,0.12502]
[1728136096536,14.1839,142.69,142.67,0.12502]
[1728136098439,10.68,142.69,142.67,0.12502]
[1728136098646,10.68,142.69,142.67,3.62932]
[1728136100137,4.94,142.75,142.67,0.12502]
[1728136100353,1.3828,142.77,142.67,0.12502]
[1728136100535,1.3828,142.77,142.71,10.68]
[1728136100740,14.1826,142.75,142.71,19.1233]
[1728136100948,10.68,142.74,142.71,8.4433]
[1728136101135,10.68,142.74,142.71,4.94]
[1728136101340,10.68,142.73,142.71,4.94]
[1728136101542,10.68,142.72,142.71,4.94]
[1728136101945,3.5025,142.75,142.71,4.94]
[1728136102251,10.68,142.72,142.71,4.94]
[1728136104046,1.3506,142.77,142.71,4.94]
[1728136104357,10.68,142.73,142.71,8.4434]
[1728136104755,10.68,142.73,142.71,4.94]
[1728136109958,10.68,142.72,142.71,4.94]
[1728136111451,6.2906,142.77,142.71,4.94]
[1728136111656,10.68,142.73,142.71,8.4434]
[1728136115050,10.68,142.73,142.71,4.94]
[1728136115248,14.1829,142.73,142.71,4.94]
[1728136116957,10.68,142.73,142.71,4.94]
[1728136117763,6.2906,142.77,142.71,4.94]
[1728136118062,10.68,142.74,142.71,4.94]
[1728136118463,3.5026,142.75,142.71,8.4433]
[1728136118654,10.68,142.74,142.71,8.4433]
[1728136119259,14.1827,142.74,142.71,8.4433]
[1728136119770,14.1827,142.74,142.71,4.94]
[1728136121661,10.68,142.73,142.71,4.94]
[1728136123061,3.5025,142.75,142.71,8.4433]
[1728136123265,10.68,142.74,142.71,8.4433]
[1728136125061,14.1828,142.74,142.71,8.4433]
[1728136125963,3.5031,142.72,142.71,4.94]
[1728136130378,3.5035,142.71,142.68,8.424]
[1728136131172,3.5035,142.71,142.68,3.504]
[1728136131378,3.5035,142.71,142.68,8.424]
[1728136133681,10.68,142.72,142.68,4.92]
[1728136133878,14.1833,142.72,142.69,3.5039]
[1728136137189,3.503,142.73,142.7,3.5036]
[1728136137480,10.68,142.72,142.68,4.92]
[1728136138084,14.1832,142.72,142.69,3.5037]
[1728136138580,10.68,142.72,142.68,4.92]
[1728136138783,3.5026,142.75,142.69,1.18822722]
[1728136138975,10.68,142.73,142.69,1.18822722]
[1728136139282,3.5027,142.74,142.71,3.5033]
[1728136139482,10.68,142.73,142.71,3.5033]
[1728136141382,1.3506,142.77,142.71,4.88]
[1728136141688,10.68,142.75,142.71,15.56]
[1728136141879,10.68,142.75,142.72,3.503]
[1728136142482,14.1824,142.75,142.72,3.503]
[1728136144690,10.68,142.75,142.72,3.503]
[1728136146091,14.1824,142.75,142.72,3.503]
[1728136147296,2.7075,142.82,142.72,10.68]
[1728136147486,2.7075,142.82,142.71,4.88]
[1728136147487,10.68,142.77,142.73,10.68]
[1728136147686,10.68,142.77,142.74,4.88]
[1728136148084,10.68,142.77,142.74,8.3825]
[1728136148486,4.0643,142.82,142.74,4.88]
[1728136148694,10.80502,142.79,142.77,3.5019]
[1728136149387,10.80502,142.79,142.77,8.3819]
[1728136150199,10.80502,142.79,142.77,4.88]
[1728136150391,0.12502,142.79,142.78,3.5017]
[1728136150794,0.12502,142.79,142.78,14.1817]
[1728136150990,10.68,142.83,142.8,3.5011]
[1728136151196,0.12502,142.85,142.81,15.56]
[1728136151394,0.12502,142.85,142.82,3.5006]
[1728136151699,0.12502,142.85,142.81,15.56]
[1728136152098,0.12502,142.85,142.82,3.5006]
[1728136152396,0.12502,142.85,142.83,10.68]
[1728136152599,0.12502,142.85,142.84,4.88]
[1728136152993,0.12502,142.85,142.83,10.68]
[1728136153188,0.12502,142.85,142.84,4.88]
[1728136153388,0.12502,142.85,142.83,10.68]
[1728136153584,0.12502,142.85,142.84,4.88]
[1728136155489,10.80502,142.85,142.8,3.501]
[1728136155689,10.68,142.82,142.81,4.88]
[1728136156801,14.1807,142.82,142.81,4.88]
[1728136159697,3.5007,142.82,142.81,4.88]
[1728136160097,0.12502,142.85,142.81,4.88]
[1728136160288,14.1805,142.83,142.81,4.88]
[1728136161205,3.62522,142.85,142.81,19.0609]
[1728136161909,3.62522,142.85,142.82,3.5007]
[1728136162198,3.62522,142.85,142.82,10.68]
[1728136162199,0.12502,142.85,142.82,10.68]
[1728136163203,0.12502,142.85,142.82,14.1806]
[1728136163595,10.68,142.84,142.79,1.3523]
[1728136163793,0.12502,142.85,142.8,4.88]
[1728136163794,3.5007,142.82,142.8,4.88]
[1728136164810,10.68,142.84,142.8,4.88]
[1728136165000,10.68,142.84,142.8,15.56]
[1728136165498,14.1804,142.84,142.8,19.0609]
[1728136165901,3.5004,142.84,142.8,19.0609]
[1728136169515,3.5005,142.83,142.8,15.56]
[1728136172010,3.5008,142.82,142.8,4.88]
[1728136174006,3.5008,142.82,142.8,4.92]
[1728136177915,3.5009,142.81,142.8,4.92]
[1728136178108,10.68,142.84,142.8,4.92]
[1728136179010,3.5008,142.82,142.8,4.92]
[1728136181608,10.68,142.81,142.74,4.92]
[1728136181913,5.04502,142.85,142.74,4.92]
[1728136181914,10.68,142.79,142.74,15.6]
[1728136182112,14.1816,142.79,142.75,3.5023]
[1728136183016,3.5017,142.78,142.75,3.5023]
[1728136184117,3.5017,142.78,142.75,8.4223]
[1728136184613,10.68,142.79,142.74,10.68]
[1728136184818,10.68,142.79,142.75,4.92]
[1728136185223,3.5017,142.78,142.75,4.92]
[1728136187022,10.68,142.79,142.75,4.92]
[1728136187217,3.502,142.77,142.75,4.92]
[1728136190419,3.502,142.77,142.74,14.1826]
[1728136190619,3.502,142.77,142.74,19.1026]
[1728136193516,3.502,142.77,142.74,8.4226]
[1728136193726,10.68,142.77,142.74,4.92]
[1728136193927,3.5024,142.75,142.74,4.92]
[1728136194419,3.5023,142.76,142.74,4.92]
[1728136197931,10.68,142.76,142.73,0.12502]
[1728136198116,3.5026,142.74,142.73,5.04502]
[1728136198318,10.68,142.76,142.73,5.04502]
[1728136198717,3.5026,142.75,142.73,5.04502]
[1728136200528,3.5026,142.75,142.73,0.12502]
[1728136200529,3.5026,142.74,142.73,0.12502]
[1728136201328,14.1826,142.74,142.73,0.12502]
[1728136201727,10.68,142.75,142.73,0.12502]
[1728136202331,3.5026,142.74,142.73,0.12502]
[1728136202525,14.1826,142.74,142.73,0.12502]
[1728136203132,3.5026,142.74,142.73,0.12502]
[1728136203325,14.1826,142.75,142.73,0.12502]
[1728136204032,3.5026,142.74,142.73,0.12502]
[1728136204230,14.1826,142.74,142.73,0.12502]
[1728136207028,4.96,142.79,142.73,0.12502]
[1728136207225,10.68,142.75,142.73,0.12502]
[1728136207623,14.1826,142.75,142.73,0.12502]
[1728136208326,14.1822,142.76,142.73,0.12502]
[1728136208531,10.68,142.76,142.73,0.12502]
[1728136208934,3.5021,142.77,142.73,3.62782]
[1728136209126,10.68,142.76,142.73,0.12502]
[1728136209437,10.68,142.78,142.73,10.80502]
[1728136209931,10.68,142.78,142.75,3.5022]
[1728136210135,10.68,142.78,142.73,10.80502]
[1728136210136,10.68,142.78,142.76,4.96]
[1728136210519,10.68,142.78,142.76,8.462]
[1728136210724,3.5013,142.8,142.76,8.462]
[1728136210920,10.68,142.79,142.76,8.462]
[1728136211124,10.68,142.79,142.77,3.5018]
[1728136211425,10.68,142.79,142.76,4.96]
[1728136211925,10.68,142.79,142.76,8.4621]
[1728136212730,10.68,142.77,142.74,4.96]
[1728136214034,3.5022,142.76,142.74,4.96]
[1728136214521,10.68,142.75,142.73,0.12502]
[1728136214726,14.1826,142.74,142.73,0.12502]
[1728136216528,3.5039,142.69,142.67,75.70502]
[1728136216729,10.68,142.71,142.68,4.96]
[1728136217228,3.5039,142.69,142.68,4.96]
[1728136218241,3.5037,142.7,142.68,4.96]
[1728136218736,3.5037,142.7,142.67,0.12502]
[1728136219231,10.68,142.69,142.67,0.12502]
[1728136219432,10.68,142.68,142.67,0.12502]
[1728136221033,14.1841,142.68,142.67,0.12502]
[1728136223542,3.5041,142.68,142.67,0.12502]
[1728136223741,14.1841,142.68,142.67,0.12502]
[1728136223939,10.68,142.69,142.67,0.12502]
[1728136225946,14.1839,142.69,142.67,0.12502]
[1728136226435,14.1835,142.71,142.67,3.62942]
[1728136226636,10.68,142.71,142.68,4.96]
[1728136226837,6.3814,142.75,142.68,4.96]
[1728136226838,10.68,142.69,142.68,4.96]
[1728136227443,14.1839,142.69,142.68,4.96]
[1728136228441,6.3814,142.75,142.68,4.96]
[1728136228751,10.68,142.7,142.68,4.96]
[1728136229842,10.68,142.71,142.68,4.96]
[1728136230740,10.68,142.71,142.68,8.4639]
[1728136231152,10.68,142.71,142.68,4.96]
[1728136231447,10.68,142.71,142.69,3.5039]
[1728136232149,10.68,142.71,142.7,3.5036]
[1728136232354,10.68,142.72,142.68,15.64]
[1728136232558,10.68,142.72,142.68,17.0247]
[1728136232761,10.68,142.72,142.69,3.5037]
[1728136233154,14.183,142.73,142.7,3.5036]
[1728136233460,10.68,142.73,142.71,5.14]
[1728136236468,14.1829,142.73,142.71,5.14]
[1728136236759,10.68,142.73,142.71,5.14]
[1728136237254,10.68,142.72,142.67,0.12502]
[1728136237456,7.9819,142.76,142.68,5.14]
[1728136237457,14.1837,142.7,142.68,5.14]
[1728136237657,10.68,142.7,142.68,5.14]
[1728136238059,10.68,142.7,142.68,8.644]
[1728136239948,14.1832,142.72,142.68,8.644]
[1728136240557,14.1832,142.72,142.68,5.14]
[1728136240860,14.1832,142.72,142.69,3.5038]
[1728136241461,10.68,142.72,142.69,3.5038]
[1728136242963,14.1832,142.72,142.69,3.5038]
[1728136245360,1.376,142.75,142.69,3.5038]
[1728136245561,10.68,142.73,142.71,3.5034]
[1728136245766,10.68,142.73,142.71,8.6434]
[1728136246869,10.68,142.75,142.71,5.14]
[1728136247065,10.68,142.75,142.72,3.503]
[1728136247464,10.68,142.75,142.71,5.14]
[1728136248269,10.68,142.75,142.72,3.5029]
[1728136248463,0.12502,142.79,142.72,10.68]
[1728136248666,0.12502,142.79,142.74,10.68]
[1728136248870,10.68,142.78,142.75,5.14]
[1728136250067,10.68,142.78,142.76,3.502]
[1728136251368,10.68,142.78,142.77,3.5019]
[1728136252771,0.12502,142.79,142.78,3.5017]
[1728136252965,0.12502,142.79,142.75,15.82]
[1728136253464,0.12502,142.79,142.76,3.5021]
[1728136253665,0.12502,142.79,142.77,5.14]
[1728136253666,10.80502,142.79,142.77,5.14]
[1728136254374,0.12502,142.79,142.77,5.14]
[1728136254973,0.12502,142.79,142.78,3.5017]
[1728136255371,10.80502,142.79,142.77,5.14]
[1728136255570,0.12502,142.79,142.77,5.14]
[1728136255776,10.80502,142.79,142.77,5.14]
[1728136258178,10.80502,142.79,142.76,3.5021]
[1728136258378,10.80502,142.79,142.77,5.14]
[1728136259771,14.1817,142.78,142.77,5.14]
[1728136260076,10.68,142.78,142.75,5.14]
[1728136260372,10.68,142.76,142.7,75.62]
[1728136260573,10.68,142.73,142.67,4.27922]
[1728136260782,10.68,142.73,142.68,15.82]
[1728136261083,3.503,142.73,142.7,3.5036]
[1728136261373,3.5022,142.76,142.72,3.503]
[1728136261574,10.68,142.75,142.71,15.76]
[1728136261771,10.68,142.77,142.71,15.76]
[1728136262185,14.182,142.77,142.73,3.5028]
[1728136262673,3.5022,142.76,142.73,3.5028]
[1728136263073,3.5022,142.76,142.72,3.503]
[1728136264374,3.5022,142.76,142.73,3.5029]
[1728136264581,3.5022,142.76,142.71,15.76]
[1728136265379,3.5022,142.76,142.72,3.503]
[1728136265888,3.5024,142.75,142.72,3.503]
[1728136266186,10.68,142.75,142.71,5.08]
[1728136266481,10.68,142.75,142.71,8.5833]
[1728136266681,14.1825,142.75,142.71,8.5833]
[1728136266873,14.1825,142.75,142.71,5.08]
[1728136267073,14.1825,142.75,142.72,3.5031]
[1728136267781,10.68,142.75,142.72,3.5031]
[1728136268983,14.1824,142.75,142.72,3.5031]
[1728136269989,14.1824,142.75,142.71,5.08]
[1728136270185,14.1824,142.75,142.71,8.5833]
[1728136272785,3.5027,142.74,142.71,8.5833]
[1728136273175,3.5033,142.72,142.67,1.48042]
[1728136273375,3.5033,142.72,142.68,5.08]
[1728136273780,10.68,142.73,142.69,10.68]
[1728136273988,14.183,142.73,142.69,10.68]
[1728136274186,14.183,142.73,142.69,14.1838]
[1728136274382,10.68,142.73,142.69,14.1838]
[1728136274587,3.5031,142.72,142.69,14.1838]
[1728136281398,5.08,142.76,142.69,10.68]
[1728136281692,14.183,142.73,142.7,3.5036]
[1728136282900,3.5026,142.75,142.71,3.5033]
[1728136283102,10.68,142.74,142.71,3.5033]
[1728136283291,10.68,142.74,142.71,8.5833]
[1728136284195,14.1827,142.74,142.71,8.5833]
[1728136285397,10.68,142.74,142.73,3.5029]
[1728136285602,10.68,142.76,142.73,3.5029]
[1728136285895,4.1067,142.78,142.71,5.08]
[1728136286103,10.68,142.77,142.75,3.5024]
[1728136286513,3.62652,142.79,142.76,3.502]
[1728136286700,10.80502,142.79,142.75,10.68]
[1728136287300,10.80502,142.79,142.76,3.502]
[1728136288894,10.80502,142.79,142.77,5.08]
[1728136289203,10.80502,142.79,142.77,8.5819]
[1728136290102,10.80502,142.79,142.77,5.08]
[1728136291504,10.68,142.78,142.73,3.5028]
[1728136291708,10.68,142.77,142.74,5.02]
[1728136292001,3.5022,142.76,142.73,5.02]
[1728136292203,14.1822,142.76,142.73,5.02]
[1728136294396,14.1822,142.76,142.73,8.5228]
[1728136297899,10.68,142.77,142.74,3.5026]
[1728136298503,14.1818,142.78,142.75,3.5024]
[1728136298705,10.68,142.78,142.75,3.5024]
[1728136300207,14.1817,142.78,142.75,3.5024]
[1728136302106,14.1817,142.78,142.74,3.5026]
[1728136309122,14.1817,142.78,142.75,3.5023]
[1728136309319,0.12502,142.79,142.74,10.68]
[1728136309521,0.12502,142.79,142.76,5.02]
[1728136309918,0.12502,142.79,142.76,8.522]
[1728136311526,3.62652,142.79,142.76,8.522]
[1728136311724,0.12502,142.79,142.78,14.1817]
[1728136314921,82.06778045,142.83,142.78,14.1817]
[1728136314922,82.06778045,142.83,142.78,10.68]
[1728136315125,82.06778045,142.83,142.81,3.5009]
[1728136315329,14.1803,142.84,142.81,3.5009]
[1728136315721,14.1803,142.84,142.8,10.68]
[1728136315722,0.12502,142.85,142.8,10.68]
[1728136316023,0.12502,142.85,142.79,5.02]
[1728136316024,10.80502,142.85,142.82,3.5007]
[1728136316322,10.80502,142.85,142.82,8.5207]
[1728136317024,14.30502,142.85,142.82,8.5207]
[1728136317422,0.12502,142.85,142.83,3.5004]
[1728136318131,3.62502,142.85,142.82,8.5206]
[1728136318426,10.68,142.84,142.82,5.02]
[1728136318635,14.1804,142.83,142.82,5.02]
[1728136319222,3.5009,142.82,142.79,5.02]
[1728136319421,10.68,142.81,142.79,5.02]
[1728136319630,10.68,142.81,142.77,14.1819]
[1728136319817,14.1814,142.79,142.78,5.02]
[1728136320318,10.68,142.79,142.75,3.5022]
[1728136320524,10.68,142.77,142.73,155.58351376]
[1728136320717,10.68,142.77,142.74,5.02]
[1728136321229,14.1821,142.77,142.74,5.02]
[1728136321525,3.5024,142.76,142.74,5.02]
[1728136321829,10.68,142.77,142.74,5.02]
[1728136322532,14.1821,142.77,142.74,5.02]
[1728136323233,14.1821,142.77,142.73,3.62772]
[1728136323528,14.1821,142.77,142.74,4.98]
[1728136324827,1.3857,142.81,142.74,4.98]
[1728136324828,10.68,142.76,142.74,4.98]
[1728136326124,3.5024,142.75,142.74,4.98]
[1728136327331,3.5026,142.74,142.73,0.12502]
[1728136329033,14.1826,142.74,142.73,0.12502]
[1728136331035,3.5026,142.74,142.73,0.12502]
[1728136331934,14.1823,142.76,142.73,0.12502]
[1728136332330,7.008,142.93,142.73,5.10502]
[1728136332634,10.68,142.77,142.74,3.5026]
[1728136333726,14.1819,142.77,142.74,3.5026]
[1728136334428,3.5013,142.8,142.76,3.5022]
[1728136334735,10.68,142.8,142.76,4.98]
[1728136334929,3.5019,142.78,142.76,4.98]
[1728136336236,10.68,142.78,142.76,4.98]
[1728136336435,14.1819,142.77,142.76,4.98]
[1728136336634,10.68,142.77,142.73,5.10502]
[1728136336828,10.68,142.75,142.73,5.10502]
[1728136337228,14.1826,142.75,142.73,5.10502]
[1728136337731,10.68,142.75,142.73,5.10502]
[1728136342039,10.68,142.76,142.74,3.5026]
[1728136342241,10.68,142.78,142.73,5.10502]
[1728136342539,10.68,142.78,142.74,10.68]
[1728136343037,10.68,142.79,142.74,10.68]
[1728136343235,10.68,142.79,142.75,10.68]
[1728136343442,10.68,142.79,142.76,4.98]
[1728136343739,10.68,142.79,142.76,8.482]
[1728136344139,14.1814,142.79,142.76,8.482]
[1728136346539,10.68,142.79,142.76,8.482]
[1728136346747,10.68,142.79,142.77,3.5018]
[1728136348033,10.68,142.79,142.76,4.98]
[1728136348233,10.68,142.79,142.76,8.4821]
[1728136348543,82.0803453,142.82,142.76,4.98]
[1728136348743,14.181,142.81,142.78,3.5016]
[1728136349943,10.68,142.81,142.78,3.5016]
[1728136350143,10.68,142.81,142.79,3.5014]
[1728136350341,96.2611453,142.82,142.79,8.4814]
[1728136350847,10.68,142.81,142.79,4.98]
[1728136351942,14.1809,142.81,142.79,4.98]
[1728136352648,3.5004,142.84,142.8,3.501]
[1728136352946,10.68,142.84,142.8,10.68]
[1728136353446,10.68,142.86,142.81,10.68]
[1728136353648,10.68,142.86,142.82,4.92]
[1728136354850,4.0192,142.9,142.82,15.6]
[1728136355049,10.68,142.88,142.84,10.68]
[1728136355645,10.68,142.88,142.84,14.1802]
[1728136355943,0.12502,142.91,142.84,10.68]
[1728136356165,0.12502,142.91,142.89,10.68]
[1728136356359,0.12502,142.91,142.9,15.6]
[1728136357552,0.12502,142.91,142.9,4.92]
[1728136357755,0.12502,142.91,142.87,1.3165]
[1728136358062,0.12502,142.91,142.88,4.92]
[1728136358957,0.12502,142.91,142.86,1.436]
[1728136359162,3.499,142.89,142.85,3.4999]
[1728136359353,3.499,142.89,142.87,4.92]
[1728136360355,3.4992,142.88,142.84,3.5001]
[1728136360555,0.12502,142.91,142.85,4.92]
[1728136360961,3.4989,142.9,142.85,8.4198]
[1728136361152,0.12502,142.91,142.85,8.4198]
[1728136362065,3.499,142.89,142.85,8.4198]
[1728136362762,3.499,142.89,142.85,4.92]
[1728136363263,3.4992,142.88,142.85,4.92]
[1728136364565,16.79,142.9,142.83,69.12238831]
[1728136364777,3.4998,142.86,142.84,4.92]
[1728136366664,16.79,142.9,142.84,4.92]
[1728136366861,3.4995,142.87,142.84,4.92]
[1728136367563,3.4992,142.89,142.84,8.42]
[1728136367761,3.4992,142.89,142.84,4.92]
[1728136368156,3.4992,142.89,142.85,3.4999]
[1728136369765,3.4992,142.89,142.84,4.92]
[1728136370069,3.4992,142.89,142.86,3.4997]
[1728136370369,3.4992,142.89,142.87,4.92]
[1728136371267,2.89372,142.91,142.87,4.92]
[1728136371469,3.4992,142.88,142.87,4.92]
[1728136372067,3.4991,142.89,142.87,4.92]
[1728136373467,2.89372,142.91,142.87,4.92]
[1728136373672,3.4992,142.88,142.87,4.92]
[1728136379070,16.79,142.9,142.83,3.5003]
[1728136379269,3.5,142.85,142.84,4.92]
[1728136380770,10.75,142.87,142.84,1.4197]
[1728136381465,3.5,142.85,142.84,1.4197]
[1728136382986,3.5,142.85,142.75,2.7803]
[1728136382987,10.75,142.85,142.75,2.7803]
[1728136383175,4.96,142.89,142.79,5.08502]
[1728136383176,10.75,142.83,142.79,5.08502]
[1728136383477,10.75,142.84,142.79,15.83502]
[1728136383688,10.75,142.84,142.8,10.75]
[1728136383980,10.75,142.84,142.79,5.08502]
[1728136384178,10.75,142.84,142.79,15.83502]
[1728136384882,3.5008,142.82,142.79,15.83502]
[1728136385480,10.75,142.84,142.79,15.83502]
[1728136385481,3.5009,142.81,142.79,15.83502]
[1728136386281,3.5008,142.82,142.79,19.33642]
[1728136386883,3.5005,142.83,142.8,10.75]
[1728136387178,3.5005,142.83,142.79,5.08502]
[1728136387179,13.524,142.86,142.81,10.75]
[1728136387386,13.524,142.86,142.82,4.96]
[1728136387587,12.1672,142.86,142.82,4.96]
[1728136387774,10.75,142.86,142.82,19.2107]
[1728136388483,14.2499,142.86,142.82,19.2107]
[1728136389787,10.75,142.86,142.82,15.71]
[1728136389985,10.75,142.86,142.82,4.96]
[1728136390482,3.5002,142.84,142.82,4.96]
[1728136391285,3.5,142.85,142.82,4.96]
[1728136394082,10.75,142.86,142.82,4.96]
[1728136394284,3.5002,142.84,142.82,4.96]
[1728136398095,3.5,142.85,142.82,4.96]
[1728136398288,10.75,142.87,142.82,19.2105]
[1728136399085,10.75,142.87,142.82,15.71]
[1728136399295,3.5001,142.85,142.82,15.71]
[1728136399593,10.75,142.86,142.82,15.71]
[1728136400494,3.5,142.85,142.82,15.71]
[1728136404698,10.75,142.86,142.82,15.71]
[1728136404699,3.5002,142.84,142.82,15.71]
[1728136404997,10.75,142.87,142.82,19.2107]
[1728136405891,3.4993,142.88,142.82,19.2107]
[1728136406088,10.75,142.87,142.82,19.2107]
[1728136407092,3.5,142.85,142.82,19.2107]
[1728136409912,3.5,142.85,142.82,15.71]
[1728136411309,10.75,142.86,142.82,4.96]
[1728136411509,3.5,142.85,142.82,4.96]
[1728136412312,3.5002,142.84,142.82,4.96]
[1728136414706,3.5001,142.85,142.82,4.96]
[1728136415308,3.4998,142.86,142.82,8.4607]
[1728136415997,3.4994,142.88,142.84,10.75]
[1728136416200,0.12502,142.91,142.86,10.75]
[1728136416610,0.12502,142.91,142.87,10.75]
[1728136416804,0.12502,142.91,142.88,4.92]
[1728136419015,3.4987,142.9,142.88,4.92]
[1728136419711,3.62362,142.91,142.88,4.92]
[1728136419917,0.12502,142.91,142.88,4.92]